fUSD/lending_fUSD_20260616
["ID","MTS","AMOUNT","RATE_DAILY","PERIOD"]
[425125855,1781541038000,-20326.0598532,0.00010585,2]
[425125856,1781541038000,-609.09082193,0.00010585,2]
[425125877,1781541039000,-500.0,0.00010684,2]
[425125863,1781541039000,-2488.11649926,0.00010585,2]
[425125861,1781541039000,-1956.27472976,0.00010585,2]
[425125862,1781541039000,-15987.651655,0.00010585,2]
[425125865,1781541039000,-1192185.5749769,0.00010585,2]
[425125864,1781541039000,-5118.8234575,0.00010585,2]
[425125867,1781541039000,-250.0,0.00010588,2]
[425125866,1781541039000,-551.44895962,0.00010585,2]
[425125870,1781541039000,-500.0,0.00010684,2]
[425125876,1781541039000,-500.0,0.00010684,2]
[425125872,1781541039000,-500.0,0.00010684,2]
[425125869,1781541039000,-402.62791546,0.00010684,2]
[425125879,1781541039000,-150.0,0.00010684,2]
[425125871,1781541039000,-500.0,0.00010684,2]
[425125873,1781541039000,-500.0,0.00010684,2]
[425125878,1781541039000,-500.0,0.00010684,2]
[425125874,1781541039000,-583.46005836,0.00010684,2]
[425125875,1781541039000,-500.0,0.00010684,2]
[425125868,1781541039000,-200.0,0.00010605,2]
[425125910,1781541040000,-7721.29478402,0.00011544,2]
[425125915,1781541040000,-500.0,0.0001155,2]
[425125909,1781541040000,-166.66,0.00011507,2]
[425125911,1781541040000,-11020.97047616,0.00011544,2]
[425125912,1781541040000,-193.0,0.0001155,2]
[425125913,1781541040000,-300.0,0.0001155,2]
[425125914,1781541040000,-250.0,0.0001155,2]
[425125916,1781541040000,-300.0,0.0001155,2]
[425125908,1781541040000,-3250.0,0.000115,2]
[425125918,1781541040000,-160.0,0.00011575,2]
[425125917,1781541040000,-1360.53,0.00011574,2]
[425125926,1781541040000,-3358.0,0.00012412,2]
[425125919,1781541040000,-3444.0,0.000118,2]
[425125923,1781541040000,-11020.97047616,0.00012023,2]
[425125927,1781541040000,-33290.518,0.00012484,2]
[425125921,1781541040000,-198.0,0.00012,2]
[425125925,1781541040000,-179.51,0.00012329,2]
[425125924,1781541040000,-176.31,0.00012036,2]
[425125922,1781541040000,-7721.29478402,0.00012023,2]
[425125928,1781541040000,-2000.0,0.00012484,2]
[425125929,1781541040000,-2250.0,0.000125,2]
[425125907,1781541040000,-153.62,0.0001144,2]
[425125920,1781541040000,-690.01108619,0.00011887,2]
[425125905,1781541040000,-511.57,0.0001136,2]
[425125887,1781541040000,-165.16,0.00010932,2]
[425125904,1781541040000,-166.66,0.00011288,2]
[425125886,1781541040000,-200.0,0.00010926,2]
[425125888,1781541040000,-150.0,0.00010959,2]
[425125889,1781541040000,-166.66,0.00010959,2]
[425125881,1781541040000,-200.0,0.00010711,2]
[425125880,1781541040000,-2513.0,0.00010685,2]
[425125882,1781541040000,-200.0,0.00010818,2]
[425125884,1781541040000,-2135.0,0.00010845,2]
[425125885,1781541040000,-690.01108622,0.000109,2]
[425125883,1781541040000,-1191.73,0.0001082,2]
[425125893,1781541040000,-166.66,0.00011068,2]
[425125906,1781541040000,-166.66,0.00011397,2]
[425125892,1781541040000,-3000.0,0.00011007,2]
[425125930,1781541040000,-7721.29478402,0.00012503,2]
[425125894,1781541040000,-1191.73,0.00011071,2]
[425125896,1781541040000,-7721.29478402,0.00011099,2]
[425125898,1781541040000,-11020.97047616,0.00011099,2]
[425125895,1781541040000,-7721.2947841,0.00011099,2]
[425125897,1781541040000,-11020.97047618,0.00011099,2]
[425125891,1781541040000,-150.0,0.00010959,2]
[425125900,1781541040000,-300.0,0.00011108,2]
[425125903,1781541040000,-168.87,0.00011233,2]
[425125902,1781541040000,-166.66,0.00011178,2]
[425125890,1781541040000,-150.0,0.00010959,2]
[425125936,1781541040000,-1360.53,0.0001286,2]
[425125970,1781541040000,-4231.0,0.00013632,2]
[425125933,1781541040000,-577.50029734,0.00012636,2]
[425125962,1781541040000,-150.0,0.00013488,2]
[425125961,1781541040000,-11020.97047616,0.00013462,2]
[425125968,1781541040000,-150.0,0.00013598,2]
[425125963,1781541040000,-547.84,0.00013598,2]
[425125969,1781541040000,-152.0,0.00013598,2]
[425125964,1781541040000,-313.0,0.00013598,2]
[425125967,1781541040000,-311.0,0.00013598,2]
[425125965,1781541040000,-319.0,0.00013598,2]
[425125972,1781541040000,-500.0,0.00013698,2]
[425125971,1781541040000,-500.0,0.00013698,2]
[425125955,1781541040000,-224.709078,0.00013425,2]
[425125974,1781541040000,-500.0,0.00013698,2]
[425125973,1781541040000,-500.0,0.00013698,2]
[425125977,1781541040000,-500.0,0.00013698,2]
[425125975,1781541040000,-500.0,0.00013698,2]
[425125979,1781541040000,-500.0,0.00013698,2]
[425125978,1781541040000,-500.0,0.00013698,2]
[425125983,1781541040000,-500.0,0.00013698,2]
[425125981,1781541040000,-500.0,0.00013698,2]
[425125982,1781541040000,-500.0,0.00013698,2]
[425125980,1781541040000,-500.0,0.00013698,2]
[425125937,1781541040000,-7669.11,0.00012893,2]
[425125976,1781541040000,-500.0,0.00013698,2]
[425125957,1781541040000,-321.0,0.00013446,2]
[425125966,1781541040000,-320.0,0.00013598,2]
[425125953,1781541040000,-428.558087,0.00013425,2]
[425125931,1781541040000,-11020.97047616,0.00012503,2]
[425125958,1781541040000,-320.0,0.00013446,2]
[425125932,1781541040000,-511.57,0.00012622,2]
[425125935,1781541040000,-2000.0,0.000128,2]
[425125938,1781541040000,-7396.81,0.00012893,2]
[425125934,1781541040000,-1524.03242162,0.00012636,2]
[425125939,1781541040000,-7721.29478402,0.00012982,2]
[425125941,1781541040000,-2688.57384107,0.00013136,2]
[425125942,1781541040000,-690.01108619,0.00013189,2]
[425125944,1781541040000,-392.2,0.00013213,2]
[425125945,1781541040000,-445.64,0.00013216,2]
[425125946,1781541040000,-174.50086466,0.00013225,2]
[425125940,1781541040000,-11020.97047616,0.00012982,2]
[425125943,1781541040000,-399.37,0.00013208,2]
[425125954,1781541040000,-198.580135,0.00013425,2]
[425125952,1781541040000,-289.664047,0.00013425,2]
[425125951,1781541040000,-258.807409,0.00013425,2]
[425125950,1781541040000,-551.44895961,0.00013411,2]
[425125959,1781541040000,-216.09656886,0.0001346,2]
[425125956,1781541040000,-309.0,0.00013446,2]
[425125949,1781541040000,-250.0,0.00013342,2]
[425125948,1781541040000,-327.02,0.00013245,2]
[425125947,1781541040000,-438.28,0.00013225,2]
[425125960,1781541040000,-7721.29478402,0.00013462,2]
[425126023,1781541041000,-4422.03,0.00013698,2]
[425126015,1781541041000,-4422.03,0.00013698,2]
[425126017,1781541041000,-4422.03,0.00013698,2]
[425126011,1781541041000,-500.0,0.00013698,2]
[425126016,1781541041000,-4422.03,0.00013698,2]
[425126029,1781541041000,-500.0,0.00013698,2]
[425126019,1781541041000,-4422.03,0.00013698,2]
[425126018,1781541041000,-4422.03,0.00013698,2]
[425126021,1781541041000,-4422.03,0.00013698,2]
[425126020,1781541041000,-4422.03,0.00013698,2]
[425126022,1781541041000,-4422.03,0.00013698,2]
[425126024,1781541041000,-4422.03,0.00013698,2]
[425126034,1781541041000,-327.02,0.0001371,2]
[425126028,1781541041000,-4422.03,0.00013698,2]
[425126026,1781541041000,-4422.03,0.00013698,2]
[425126027,1781541041000,-4422.03,0.00013698,2]
[425126030,1781541041000,-4422.03,0.00013698,2]
[425126032,1781541041000,-1594.22,0.00013699,2]
[425126035,1781541041000,-153.62,0.00013728,2]
[425126036,1781541041000,-206.556683,0.00013743,2]
[425126040,1781541041000,-327.02,0.00013902,2]
[425126033,1781541041000,-845.73,0.000137,2]
[425126031,1781541041000,-200.0,0.00013699,2]
[425126014,1781541041000,-4422.03,0.00013698,2]
[425126025,1781541041000,-4422.03,0.00013698,2]
[425126012,1781541041000,-500.0,0.00013698,2]
[425125984,1781541041000,-500.0,0.00013698,2]
[425126010,1781541041000,-500.0,0.00013698,2]
[425125992,1781541041000,-500.0,0.00013698,2]
[425125987,1781541041000,-500.0,0.00013698,2]
[425126039,1781541041000,-511.57,0.00013884,2]
[425125988,1781541041000,-500.0,0.00013698,2]
[425125991,1781541041000,-500.0,0.00013698,2]
[425125985,1781541041000,-500.0,0.00013698,2]
[425125986,1781541041000,-623.1,0.00013698,2]
[425125989,1781541041000,-500.0,0.00013698,2]
[425125990,1781541041000,-500.0,0.00013698,2]
[425125993,1781541041000,-500.0,0.00013698,2]
[425125996,1781541041000,-500.0,0.00013698,2]
[425126013,1781541041000,-524.64224758,0.00013698,2]
[425126006,1781541041000,-500.0,0.00013698,2]
[425125998,1781541041000,-500.0,0.00013698,2]
[425125997,1781541041000,-500.0,0.00013698,2]
[425126001,1781541041000,-500.0,0.00013698,2]
[425126000,1781541041000,-500.0,0.00013698,2]
[425126003,1781541041000,-500.0,0.00013698,2]
[425126005,1781541041000,-500.0,0.00013698,2]
[425126004,1781541041000,-500.0,0.00013698,2]
[425126002,1781541041000,-500.0,0.00013698,2]
[425126007,1781541041000,-500.0,0.00013698,2]
[425126009,1781541041000,-500.0,0.00013698,2]
[425126008,1781541041000,-512.35835057,0.00013698,2]
[425125995,1781541041000,-500.0,0.00013698,2]
[425126038,1781541041000,-2988.9,0.00013869,2]
[425125994,1781541041000,-500.0,0.00013698,2]
[425126042,1781541041000,-7721.29478402,0.00013941,2]
[425126070,1781541041000,-450.0,0.00014452,2]
[425126066,1781541041000,-450.0,0.00014452,2]
[425126071,1781541041000,-450.0,0.00014452,2]
[425126073,1781541041000,-450.0,0.00014452,2]
[425126075,1781541041000,-450.0,0.00014452,2]
[425126076,1781541041000,-150.0,0.00014452,2]
[425126077,1781541041000,-450.0,0.00014452,2]
[425126079,1781541041000,-450.0,0.00014452,2]
[425126078,1781541041000,-150.0,0.00014452,2]
[425126085,1781541041000,-450.0,0.00014452,2]
[425126080,1781541041000,-150.0,0.00014452,2]
[425126069,1781541041000,-450.0,0.00014452,2]
[425126084,1781541041000,-150.0,0.00014452,2]
[425126082,1781541041000,-150.0,0.00014452,2]
[425126081,1781541041000,-450.0,0.00014452,2]
[425126087,1781541041000,-450.0,0.00014452,2]
[425126086,1781541041000,-250.0,0.00014452,2]
[425126088,1781541041000,-450.0,0.00014452,2]
[425126089,1781541041000,-450.0,0.00014452,2]
[425126094,1781541041000,-450.41415228,0.00014452,2]
[425126093,1781541041000,-450.0,0.00014452,2]
[425126091,1781541041000,-450.0,0.00014452,2]
[425126090,1781541041000,-450.0,0.00014452,2]
[425126095,1781541041000,-150.0,0.00014452,2]
[425126083,1781541041000,-450.0,0.00014452,2]
[425126072,1781541041000,-450.0,0.00014452,2]
[425126092,1781541041000,-450.0,0.00014452,2]
[425126067,1781541041000,-450.0,0.00014452,2]
[425126068,1781541041000,-450.0,0.00014452,2]
[425126050,1781541041000,-1360.53,0.00014146,2]
[425126041,1781541041000,-203.96211632,0.00013921,2]
[425126051,1781541041000,-327.02,0.00014175,2]
[425126043,1781541041000,-11020.97047616,0.00013941,2]
[425126047,1781541041000,-327.02,0.0001405,2]
[425126046,1781541041000,-250.0,0.00014,2]
[425126045,1781541041000,-500.0,0.0001399,2]
[425126049,1781541041000,-4021.9456732,0.00014136,2]
[425126048,1781541041000,-194.79913,0.00014096,2]
[425126044,1781541041000,-3750.75986575,0.0001399,2]
[425126052,1781541041000,-399.37,0.00014191,2]
[425126054,1781541041000,-255.982204,0.00014214,2]
[425126037,1781541041000,-159.13,0.00013768,2]
[425126056,1781541041000,-327.02,0.00014284,2]
[425126057,1781541041000,-327.02,0.00014384,2]
[425126063,1781541041000,-500.0,0.00014452,2]
[425126064,1781541041000,-248.14071597,0.00014452,2]
[425126060,1781541041000,-7721.29478402,0.00014421,2]
[425126061,1781541041000,-11020.97047616,0.00014421,2]
[425126074,1781541041000,-450.0,0.00014452,2]
[425126059,1781541041000,-2000.0,0.000144,2]
[425126058,1781541041000,-2000.0,0.00014399,2]
[425126062,1781541041000,-500.0,0.00014452,2]
[425126053,1781541041000,-392.2,0.00014196,2]
[425126055,1781541041000,-203.96211632,0.00014281,2]
[425126065,1781541041000,-450.0,0.00014452,2]
[425126123,1781541042000,-159.13,0.00014533,2]
[425126120,1781541042000,-9999.99,0.00014504,2]
[425126127,1781541042000,-445.64,0.00014607,2]
[425126129,1781541042000,-5441.832,0.00014636,2]
[425126126,1781541042000,-392.2,0.00014603,2]
[425126124,1781541042000,-327.02,0.0001456,2]
[425126121,1781541042000,-7949.89,0.00014504,2]
[425126122,1781541042000,-466.97,0.00014504,2]
[425126132,1781541042000,-5353.11292554,0.00014689,2]
[425126125,1781541042000,-399.37,0.00014598,2]
[425126131,1781541042000,-203.96211632,0.0001464,2]
[425126130,1781541042000,-327.02,0.00014639,2]
[425126119,1781541042000,-747.79,0.00014504,2]
[425126133,1781541042000,-1500.0,0.00014818,2]
[425126135,1781541042000,-163.28917021,0.00014859,2]
[425126134,1781541042000,-350.0,0.00014818,2]
[425126139,1781541042000,-4952.444,0.00014899,2]
[425126136,1781541042000,-2680.0,0.00014875,2]
[425126128,1781541042000,-438.28,0.00014618,2]
[425126118,1781541042000,-299.99,0.00014504,2]
[425126111,1781541042000,-5742.96,0.00014497,2]
[425126112,1781541042000,-3303.46,0.00014497,2]
[425126137,1781541042000,-200.0,0.00014879,2]
[425126096,1781541042000,-500.0,0.00014452,2]
[425126097,1781541042000,-150.0,0.00014452,2]
[425126098,1781541042000,-500.0,0.00014452,2]
[425126099,1781541042000,-205.12181795,0.00014452,2]
[425126104,1781541042000,-500.0,0.00014452,2]
[425126102,1781541042000,-500.0,0.00014452,2]
[425126101,1781541042000,-500.0,0.00014452,2]
[425126105,1781541042000,-500.0,0.00014452,2]
[425126103,1781541042000,-500.0,0.00014452,2]
[425126106,1781541042000,-400.93207485,0.00014452,2]
[425126107,1781541042000,-327.02,0.00014475,2]
[425126109,1781541042000,-512.13,0.00014497,2]
[425126108,1781541042000,-690.01108619,0.00014491,2]
[425126110,1781541042000,-757.39,0.00014497,2]
[425126115,1781541042000,-1583.39,0.00014504,2]
[425126117,1781541042000,-9999.99,0.00014504,2]
[425126116,1781541042000,-150.99,0.00014504,2]
[425126114,1781541042000,-395.307,0.00014504,2]
[425126113,1781541042000,-5910.614,0.00014504,2]
[425126100,1781541042000,-500.0,0.00014452,2]
[425126138,1781541042000,-200.0,0.0001488,2]
[425126142,1781541042000,-3459.0,0.000149,5]
[425126166,1781541042000,-500.0,0.00014999,2]
[425126165,1781541042000,-500.0,0.00014999,2]
[425126167,1781541042000,-500.0,0.00014999,2]
[425126168,1781541042000,-500.0,0.00014999,2]
[425126172,1781541042000,-4422.03,0.00014999,2]
[425126170,1781541042000,-210.66,0.00014999,2]
[425126169,1781541042000,-500.0,0.00014999,2]
[425126171,1781541042000,-4422.03,0.00014999,2]
[425126173,1781541042000,-4422.03,0.00014999,2]
[425126175,1781541042000,-4422.03,0.00014999,2]
[425126174,1781541042000,-4422.03,0.00014999,2]
[425126178,1781541042000,-300.0,0.00014999,2]
[425126177,1781541042000,-4422.11,0.00014999,2]
[425126180,1781541042000,-302.06937084,0.00015,2]
[425126176,1781541042000,-4422.03,0.00014999,2]
[425126182,1781541042000,-62.50156933,0.00010879,2]
[425126181,1781541042000,-500.0,0.00010605,2]
[425126183,1781541042000,-437.49843067,0.00010879,2]
[425126140,1781541042000,-151.0,0.000149,2]
[425126164,1781541042000,-500.0,0.00014999,2]
[425126162,1781541042000,-500.0,0.00014999,2]
[425126179,1781541042000,-2271089.33124022,0.00015,2]
[425126159,1781541042000,-905.62,0.00014999,2]
[425126141,1781541042000,-3085.0,0.000149,5]
[425126163,1781541042000,-500.0,0.00014999,2]
[425126143,1781541042000,-7721.29478402,0.000149,2]
[425126145,1781541042000,-542.416554,0.000149,2]
[425126148,1781541042000,-163.28917021,0.00014929,2]
[425126147,1781541042000,-172.03932721,0.00014925,2]
[425126149,1781541042000,-313.0,0.00014938,2]
[425126150,1781541042000,-313.0,0.00014938,2]
[425126144,1781541042000,-11020.97047616,0.000149,2]
[425126146,1781541042000,-171.01773711,0.000149,2]
[425126152,1781541042000,-150.0,0.00014986,2]
[425126154,1781541042000,-500.0,0.00014998,2]
[425126157,1781541042000,-84327.5890069,0.00014999,2]
[425126156,1781541042000,-1046.48317555,0.00014999,5]
[425126155,1781541042000,-4422.03,0.00014998,2]
[425126153,1781541042000,-151.0,0.00014997,2]
[425126158,1781541042000,-7273.0595499,0.00014999,2]
[425126151,1781541042000,-500.0,0.00014959,2]
[425126161,1781541042000,-500.0,0.00014999,2]
[425126160,1781541042000,-500.0,0.00014999,2]
[425126214,1781541043000,-151.0,0.00015,2]
[425126225,1781541043000,-151.0,0.00015,2]
[425126224,1781541043000,-200.0,0.00015,2]
[425126221,1781541043000,-151.0,0.00015,2]
[425126220,1781541043000,-151.0,0.00015,2]
[425126219,1781541043000,-151.0,0.00015,2]
[425126228,1781541043000,-945.500477,0.00015,2]
[425126217,1781541043000,-151.0,0.00015,2]
[425126218,1781541043000,-151.0,0.00015,2]
[425126222,1781541043000,-151.0,0.00015,2]
[425126227,1781541043000,-945.500477,0.00015,2]
[425126223,1781541043000,-151.0,0.00015,2]
[425126230,1781541043000,-945.500477,0.00015,2]
[425126229,1781541043000,-945.500477,0.00015,2]
[425126233,1781541043000,-945.500477,0.00015,2]
[425126232,1781541043000,-945.500477,0.00015,2]
[425126231,1781541043000,-945.500477,0.00015,2]
[425126235,1781541043000,-151.0,0.00015,2]
[425126234,1781541043000,-945.500477,0.00015,2]
[425126237,1781541043000,-157.596557,0.00015,2]
[425126240,1781541043000,-151.0,0.00015,2]
[425126239,1781541043000,-151.0,0.00015,2]
[425126238,1781541043000,-151.0,0.00015,2]
[425126212,1781541043000,-151.0,0.00015,2]
[425126226,1781541043000,-953.24346,0.00015,2]
[425126213,1781541043000,-151.0,0.00015,2]
[425126194,1781541043000,-500.0,0.00011975,2]
[425126216,1781541043000,-151.0,0.00015,2]
[425126236,1781541043000,-151.0,0.00015,2]
[425126188,1781541043000,-500.0,0.00011427,2]
[425126186,1781541043000,-500.0,0.00011153,2]
[425126190,1781541043000,-154030.43647208,0.00015,2]
[425126189,1781541043000,-500.0,0.00011701,2]
[425126191,1781541043000,-445994.74800559,0.00015,2]
[425126195,1781541043000,-1294688.81954505,0.00015,2]
[425126192,1781541043000,-697.22113509,0.00015,2]
[425126193,1781541043000,-759425.58417837,0.00015,2]
[425126196,1781541043000,-151.0,0.00015,2]
[425126201,1781541043000,-500.0,0.00015,2]
[425126197,1781541043000,-7421.0,0.00015,2]
[425126202,1781541043000,-500.0,0.00015,2]
[425126203,1781541043000,-500.0,0.00015,2]
[425126198,1781541043000,-203.96211632,0.00015,2]
[425126204,1781541043000,-500.0,0.00015,2]
[425126200,1781541043000,-200.0,0.00015,2]
[425126199,1781541043000,-1057.72,0.00015,2]
[425126205,1781541043000,-500.0,0.00015,2]
[425126206,1781541043000,-210.406796,0.00015,2]
[425126207,1781541043000,-151.0,0.00015,2]
[425126208,1781541043000,-151.0,0.00015,2]
[425126209,1781541043000,-257.616072,0.00015,2]
[425126211,1781541043000,-151.0,0.00015,2]
[425126210,1781541043000,-151.0,0.00015,2]
[425126215,1781541043000,-151.0,0.00015,2]
[425126242,1781541043000,-3222.0,0.00015023,2]
[425126279,1781541043000,-690.01108619,0.00015794,2]
[425126246,1781541043000,-157.45,0.00015122,2]
[425126277,1781541043000,-168.91634944,0.00015733,2]
[425126275,1781541043000,-200.0,0.00015609,2]
[425126276,1781541043000,-186.5777174,0.00015609,2]
[425126273,1781541043000,-6111.0,0.00015579,2]
[425126274,1781541043000,-953.24347,0.000156,2]
[425126297,1781541043000,-551.44895961,0.00016236,2]
[425126289,1781541043000,-243.98,0.00016065,2]
[425126278,1781541043000,-350.0,0.00015782,2]
[425126280,1781541043000,-953.24347,0.000158,2]
[425126282,1781541043000,-300.0,0.000159,7]
[425126284,1781541043000,-2000.0,0.00015999,2]
[425126270,1781541043000,-6111.0,0.00015502,2]
[425126281,1781541043000,-1050.0,0.000159,2]
[425126288,1781541043000,-159.13,0.00016063,2]
[425126286,1781541043000,-953.24347,0.00016,2]
[425126287,1781541043000,-177.02690163,0.00016,2]
[425126290,1781541043000,-365.97807184,0.00016065,2]
[425126294,1781541043000,-547.84,0.00016144,2]
[425126291,1781541043000,-281.73,0.00016074,2]
[425126292,1781541043000,-241.54,0.00016074,2]
[425126296,1781541043000,-177.02690163,0.000162,2]
[425126295,1781541043000,-10196.85866431,0.000162,2]
[425126293,1781541043000,-177.02690163,0.000161,2]
[425126247,1781541043000,-511.57,0.00015147,2]
[425126285,1781541043000,-300.0,0.00016,2]
[425126272,1781541043000,-15000.0,0.0001554,2]
[425126283,1781541043000,-1613.0535,0.00015914,2]
[425126268,1781541043000,-300.0,0.000155,5]
[425126267,1781541043000,-170.42,0.00015493,2]
[425126244,1781541043000,-150.0,0.00015068,2]
[425126252,1781541043000,-211.329121,0.00015235,7]
[425126243,1781541043000,-353.56180098,0.00015028,2]
[425126249,1781541043000,-200.0,0.0001515,2]
[425126250,1781541043000,-711.0,0.00015159,2]
[425126241,1781541043000,-151.0,0.00015,2]
[425126253,1781541043000,-159.13,0.00015298,2]
[425126251,1781541043000,-953.24347,0.000152,2]
[425126245,1781541043000,-275.86,0.00015068,2]
[425126254,1781541043000,-845.73,0.000153,2]
[425126259,1781541043000,-1555.5,0.00015366,2]
[425126255,1781541043000,-200.0,0.00015301,2]
[425126248,1781541043000,-200.0,0.0001515,2]
[425126257,1781541043000,-4999.99,0.0001531,2]
[425126269,1781541043000,-300.8940045,0.000155,2]
[425126266,1781541043000,-3303.46,0.00015464,2]
[425126263,1781541043000,-1360.53,0.00015432,2]
[425126262,1781541043000,-150.28828649,0.00015419,2]
[425126265,1781541043000,-200.0,0.00015455,2]
[425126271,1781541043000,-3142.89313794,0.00015538,2]
[425126260,1781541043000,-953.24347,0.000154,2]
[425126261,1781541043000,-2244.0,0.00015412,2]
[425126256,1781541043000,-200.0,0.00015301,2]
[425126258,1781541043000,-15000.0,0.00015362,2]
[425126264,1781541043000,-200.0,0.00015455,2]
[425126333,1781541044000,-152.0,0.00016438,2]
[425126336,1781541044000,-152.0,0.00016438,2]
[425126332,1781541044000,-174.0,0.00016438,2]
[425126331,1781541044000,-500.0,0.00016438,2]
[425126335,1781541044000,-152.0,0.00016438,2]
[425126330,1781541044000,-500.0,0.00016438,2]
[425126327,1781541044000,-500.0,0.00016438,2]
[425126329,1781541044000,-500.0,0.00016438,2]
[425126338,1781541044000,-152.0,0.00016438,2]
[425126339,1781541044000,-152.0,0.00016438,2]
[425126350,1781541044000,-728.300138,0.00016438,2]
[425126334,1781541044000,-152.0,0.00016438,2]
[425126348,1781541044000,-728.300138,0.00016438,2]
[425126353,1781541044000,-728.300138,0.00016438,2]
[425126343,1781541044000,-154.584177,0.00016438,2]
[425126351,1781541044000,-728.300138,0.00016438,2]
[425126349,1781541044000,-728.300138,0.00016438,2]
[425126344,1781541044000,-152.0,0.00016438,2]
[425126347,1781541044000,-728.300138,0.00016438,2]
[425126345,1781541044000,-152.0,0.00016438,2]
[425126346,1781541044000,-152.0,0.00016438,2]
[425126341,1781541044000,-151.0,0.00016438,2]
[425126342,1781541044000,-151.0,0.00016438,2]
[425126352,1781541044000,-728.300138,0.00016438,2]
[425126356,1781541044000,-369.250659,0.00016438,2]
[425126337,1781541044000,-152.0,0.00016438,2]
[425126340,1781541044000,-152.0,0.00016438,2]
[425126328,1781541044000,-500.0,0.00016438,2]
[425126300,1781541044000,-1000.0,0.0001637,2]
[425126324,1781541044000,-402.52725561,0.00016438,2]
[425126301,1781541044000,-500.0,0.0001637,2]
[425126363,1781541044000,-152.0,0.00016438,2]
[425126299,1781541044000,-310.0,0.000163,2]
[425126298,1781541044000,-350.0,0.0001626,2]
[425126312,1781541044000,-500.0,0.00016438,2]
[425126311,1781541044000,-500.0,0.00016438,2]
[425126313,1781541044000,-500.0,0.00016438,2]
[425126310,1781541044000,-500.0,0.00016438,2]
[425126314,1781541044000,-500.0,0.00016438,2]
[425126304,1781541044000,-162.0,0.00016438,2]
[425126306,1781541044000,-500.0,0.00016438,2]
[425126303,1781541044000,-845.9,0.00016438,2]
[425126321,1781541044000,-500.0,0.00016438,2]
[425126305,1781541044000,-268.59,0.00016438,2]
[425126307,1781541044000,-500.0,0.00016438,2]
[425126309,1781541044000,-500.0,0.00016438,2]
[425126315,1781541044000,-500.0,0.00016438,2]
[425126316,1781541044000,-500.0,0.00016438,2]
[425126318,1781541044000,-500.0,0.00016438,2]
[425126317,1781541044000,-500.0,0.00016438,2]
[425126319,1781541044000,-500.0,0.00016438,2]
[425126323,1781541044000,-500.0,0.00016438,2]
[425126320,1781541044000,-500.0,0.00016438,2]
[425126322,1781541044000,-500.0,0.00016438,2]
[425126326,1781541044000,-500.0,0.00016438,2]
[425126325,1781541044000,-500.0,0.00016438,2]
[425126308,1781541044000,-500.0,0.00016438,2]
[425126354,1781541044000,-728.300138,0.00016438,2]
[425126302,1781541044000,-10196.85866431,0.000164,2]
[425126360,1781541044000,-369.250659,0.00016438,2]
[425126391,1781541044000,-2000.0,0.00017599,2]
[425126390,1781541044000,-159.13,0.00017592,2]
[425126393,1781541044000,-169.86,0.00017612,2]
[425126395,1781541044000,-1000.0,0.000177,2]
[425126398,1781541044000,-244.28,0.000178,2]
[425126394,1781541044000,-10196.85866431,0.000177,2]
[425126392,1781541044000,-10196.85866431,0.000176,2]